Cogmind - Beta 15 @@@ ROGUE MODE // 2025.05.15 @ 00:57:53 Player: Skysub Result: Destroyed by YK-PQS(R) with Subdweller Machine Gun Performance ------------- Evolutions (0) 0 Regions Visited (2) 400 Robots Destroyed (10) 50 Value Destroyed (273) 273 Prototype IDs (0) 0 Alien Tech Used (0) 0 Bonus (0) 0 TOTAL SCORE: 723 Bonus ------- None Cogmind --------- Core Integrity 0/250 Matter 285/300 Energy 192/200 System Corruption 0% Temperature Cool (84) Movement Rolling (110) Location -10/Subcaves Parts ------- > --- POWER (1) -------- Subdweller Power Source > --- PROPULSION (2) --- Subdweller Monowheel Subdweller Monowheel > --- UTILITY (2) ------ (None) > --- WEAPON (2) ------- Subdweller Laser Subdweller Beam Cannon > --- INVENTORY (5) ---- Makeshift Leg Small Storage Unit Subdweller Optics Subdweller Optics Subdweller Optics Peak State ------------ > --- POWER ------------ Subdweller Power Source > --- PROPULSION ------- Subdweller Monowheel Subdweller Monowheel > --- UTILITY ---------- Scrap Shield > --- WEAPON ----------- Subdweller Laser Subdweller Laser > --- INVENTORY -------- Makeshift Leg Small Storage Unit Subdweller Optics Subdweller Optics Subdweller Optics [Rating: 15] Favorites ----------- Power Light Ion Engine Engine Light Ion Engine Propulsion Light Treads Treads Light Treads Leg Makeshift Leg Wheel Subdweller Monowheel Utility Small Storage Unit Device Improved Terrain Scanner Storage Small Storage Unit Protection Scrap Shield Weapon Assault Rifle Energy Gun Subdweller Laser Energy Cannon Subdweller Beam Cannon Ballistic Gun Assault Rifle Special Weapon Mining Laser Build | -11 -10 -10 ------- Run | Yrd Mat Sub Slots Evolved . | . . . Power . | . . . Propulsion . | . . . Utility . | . . . Weapon . | . . . Parts Attached 18 | 7 . 11 Power 3 | 1 . 2 Engine 3 | 1 . 2 Core . | . . . Reactor . | . . . Propulsion 5 | 2 . 3 Treads 2 | 2 . . Leg 1 | . . 1 Wheel 2 | . . 2 Hover . | . . . Flight . | . . . Utility 3 | 2 . 1 Device 1 | 1 . . Storage 1 | 1 . . Processor . | . . . Hackware . | . . . Protection 1 | . . 1 Artifact . | . . . Weapon 7 | 2 . 5 Energy Gun 3 | . . 3 Energy Cannon 1 | . . 1 Ballistic Gun 2 | 2 . . Ballistic Cannon . | . . . Launcher . | . . . Special Weapon 1 | . . 1 Impact Weapon . | . . . Slashing Weapon . | . . . Piercing Weapon . | . . . Special Melee Weapon . | . . . Unidentified Prototypes . | . . . Parts Lost 11 | . . 11 Power 2 | . . 2 Propulsion 2 | . . 2 Utility 2 | . . 2 Weapon 5 | . . 5 Highest Loss Streak 8 | . . 8 To Critical Strikes . | . . . Average Backups 5 | 3 5 5 Power . | . 1 . Propulsion 2 | 2 3 2 Utility 1 | . . 1 Weapon 1 | . 1 1 Tool/Special . | . . . Unused Backups 8 | . . 8 Power . | . . . Propulsion 4 | . . 4 Utility 3 | . . 3 Weapon 1 | . . 1 Tool/Special . | . . . Average Slot Usage (%) 88 | . 100 87 Engine 12 | . 14 12 Treads 18 | . 28 16 Leg 1 | . . 1 Wheel 8 | . . 9 Device 8 | . 14 8 Storage 10 | . 14 9 Protection 3 | . . 3 Energy Gun 6 | . . 6 Ballistic Gun 15 | . 28 14 Special Weapon 2 | . . 2 Peak Build Rating 15 | 9 9 15 Average Rating 9 | 5 9 10 On Entrance 6 | . 9 9 Naked Turns . | . . . Heaviest Build 35 | 13 13 35 Greatest Support 40 | 40 40 40 Greatest Overweight (x) 3 | 3 . 1 Average Overweight (x) . | . . . Largest Inventory Capacity 8 | 8 8 8 Average Capacity 7 | 7 8 7 Most Carried 8 | 5 5 8 Average Carried 5 | 3 5 5 Final Capacity 8 | 8 8 5 Final Carried 5 | 5 5 5 Class Distribution -------------------- 75% | Mutant 22% | Subdweller-Mutant Dominant Class ---------------- Mutant | -10/Materials Mutant | -10/Subcaves Resources | -11 -10 -10 ----------- Run | Yrd Mat Sub Matter Collected 506 | 288 . 218 Remotely . | . . . Salvage Created 380 | 76 . 304 Parts 29 | 4 . 25 Haulers Intercepted . | . . . Recyclers Shooed . | . . . Parts Field Recycled . | . . . Retrieved Matter . | . . . Parts Self-Destructed 5 | . . 5 Prevented . | . . . Kills | -11 -10 -10 ------- Run | Yrd Mat Sub Combat Hostiles Destroyed 8 | . . 8 Guns 7 | . . 7 Cannons 1 | . . 1 Classes Destroyed 4 | 2 . 2 Tunneler 1 | 1 . . Recycler 1 | 1 . . Swarmer 2 | . . 2 Subdweller 6 | . . 6 Best Kill Streak 2 | 2 . 2 Combat Bots Only 2 | . . 2 Max Kills in Single Turn 1 | 1 . 1 Gunslinging . | . . . Exploded . | . . . Melee . | . . . Uniques/NPCs Destroyed . | . . . Combat | -11 -10 -10 -------- Run | Yrd Mat Sub Hostile Shots Fired 104 | . . 104 Missed 31 | . . 31 Hits 73 | . . 73 Projectile 73 | . . 73 Critical Strikes 1 | . . 1 Damage Taken 1419 | . . 1419 Core 265 | . . 265 Absorbed by Shields . | . . . Core Remaining (%) 100 | 100 . . Volleys Fired 71 | 3 . 68 Largest 2 | 2 . 2 Hottest 140 | 40 . 140 Shots Fired 101 | 6 . 95 Gun 73 | 6 . 67 Cannon 4 | . . 4 Launcher . | . . . Special 24 | . . 24 Kinetic 52 | 6 . 46 Thermal 49 | . . 49 Explosive . | . . . Electromagnetic . | . . . Robot Hit Streak 11 | 2 . 11 Robot Miss Streak 2 | 2 . 2 Penetration Max . | . . . Secondary Targets 1 | . . 1 Max Gunslinging Chain 1 | . . 1 Shots Hit Robots 61 | 3 . 58 Core Hits 20 | 2 . 18 Critical Kills . | . . . Critical Parts Destroyed . | . . . Critical Strikes 1 | . . 1 Destroy 1 | . . 1 Melee Attacks . | . . . Impact . | . . . Slashing . | . . . Piercing . | . . . Sneak Attacks . | . . . Combat Hostiles . | . . . Follow-up Attacks . | . . . Damage Inflicted 942 | 42 . 900 Guns 840 | 42 . 798 Cannons 78 | . . 78 Explosions . | . . . Melee . | . . . Ramming . | . . . Kinetic 507 | 42 . 465 Thermal 435 | . . 435 Explosive . | . . . Electromagnetic . | . . . Impact . | . . . Slashing . | . . . Piercing . | . . . Highest Corruption . | . . . Average Corruption . | . . . Corruption Purged . | . . . Corruption Blocked . | . . . Overload Shots . | . . . Overflow Damage . | . . . Projectiles . | . . . Explosions . | . . . Melee . | . . . Knockbacks . | . . . Impact . | . . . Kinetic . | . . . Secondary . | . . . Self-Inflicted Damage . | . . . Shots . | . . . Rammed . | . . . Targets Rammed . | . . . Kicked . | . . . Crushed . | . . . Highest Temperature 84 | . . 84 Average Temperature 51 | . . 51 Received Heat Transfer 258 | . . 258 Siege Activations . | . . . Martial Activations . | . . . Shielding Activations . | . . . Robots Disrupted . | . . . Combat Hostiles . | . . . Robots Corrupted . | . . . Combat Hostiles . | . . . Parts Fried . | . . . Impact Corruptions . | . . . Robots Melted . | . . . Combat Hostiles . | . . . Parts Melted 3 | . . 3 Heat Transferred 561 | . . 561 Parts Sabotaged . | . . . Parts Stolen . | . . . Parts Stripped . | . . . Power Chain Reactions . | . . . Alert | -11 -10 -10 ------- Run | Yrd Mat Sub Maximum Alert Level . | . . . Low Security (%) 100 | 100 100 . Level 1 . | . . . Level 2 . | . . . Level 3 . | . . . Level 4 . | . . . Level 5 . | . . . High Security . | . . . Max Security . | . . . Peak Influence 10 | 10 . . Initial . | . . . Average . | . . . Influence Increases 50 | 10 . 40 Destroy 0b10 Robot/C 40 | . . 40 Destroy 0b10 Robot/NC 10 | 10 . . Influence Decreases 50 | 10 . 40 Time Decay 50 | 10 . 40 Squads Dispatched 1 | . 1 . Investigation . | . . . Extermination . | . . . Reinforcement 1 | . 1 . Assault . | . . . Garrison . | . . . Intercept . | . . . Searches Triggered . | . . . Construction Impeded . | . . . Haulers Reinforced . | . . . Active Scanning Responses . | . . . Cargo Convoy Interrupts . | . . . Stealth | -11 -10 -10 --------- Run | Yrd Mat Sub Distress Signals 1 | . 1 . Communications Jammed . | . . . Distress Signals . | . . . Times Spotted 14 | . . 14 Peak Tracking Total 3 | . . 3 Tactical Retreats 1 | . . 1 Traps | -11 -10 -10 ------- Run | Yrd Mat Sub Traps Triggered . | . . . Indirectly . | . . . Trap Hack Attempts . | . . . Triggered . | . . . Disarmed . | . . . Reprogrammed . | . . . Reused . | . . . Traps Extracted . | . . . Installed . | . . . Triggered . | . . . Machines | -11 -10 -10 ---------- Run | Yrd Mat Sub Machines Disabled . | . . . Max in Single Turn . | . . . Machines Repaired . | . . . Machines Dismantled . | . . . Machines Sabotaged . | . . . Overloaded Fab Kills . | . . . Hacking | -11 -10 -10 --------- Run | Yrd Mat Sub Machines Accessed . | . . . Terminals . | . . . Fabricators . | . . . Repair Stations . | . . . Recycling Units . | . . . Scanalyzers . | . . . Garrison Access . | . . . Total Hacks . | . . . Successful . | . . . Failed . | . . . Catastrophic . | . . . Database Lockouts . | . . . Manual . | . . . Terminals . | . . . Fabricators . | . . . Repair Stations . | . . . Recycling Units . | . . . Scanalyzers . | . . . Garrison Access . | . . . Terminal Hacks . | . . . Fabricator Hacks . | . . . Repair Station Hacks . | . . . Recycling Unit Hacks . | . . . Scanalyzer . | . . . Garrison Access Hacks . | . . . Unauthorized Hacks . | . . . Terminals . | . . . Fabricators . | . . . Repair Stations . | . . . Recycling Units . | . . . Scanalyzers . | . . . Garrison Access . | . . . Data Cores Recovered . | . . . Used . | . . . Hacking Detections . | . . . Full Trace Events . | . . . Feedback Events . | . . . Feedback Blocked . | . . . Robot Schematics Acquired . | . . . Robots Built . | . . . Authchips . | . . . Time . | . . . Total Robot Build Rating . | . . . Part Schematics Acquired . | . . . Parts Built . | . . . Authchips . | . . . Time . | . . . Total Part Build Rating . | . . . Parts Repaired . | . . . Time . | . . . Parts Recycled . | . . . Recycled Matter . | . . . Retrieved Matter . | . . . Retrieved Components . | . . . Parts Scanalyzed . | . . . Part Schematics Acquired . | . . . Parts Damaged . | . . . Bothacking | -11 -10 -10 ------------ Run | Yrd Mat Sub Used RIF Installer . | . . . Robots Hacked . | . . . Non-combat . | . . . Combat . | . . . Robot Hacks Applied . | . . . Relay Couplers Released . | . . . Fabnet Peak Effective % . | . . . Robots Rewired . | . . . Allies Hacked . | . . . Hacks Repelled . | . . . Allies | -11 -10 -10 -------- Run | Yrd Mat Sub Total Allies . | . . . Largest Group . | . . . Highest-Rated Group . | . . . Highest-Rated Ally . | . . . Total Orders . | . . . Ally Attacks . | . . . Total Damage . | . . . Kills . | . . . Allies Corrupted . | . . . Allies Melted . | . . . Intel | -11 -10 -10 ------- Run | Yrd Mat Sub Active Infowar (turns) 771 | 20 109 642 Terrain 771 | 20 109 642 Robot Analysis Total . | . . . Derelict Logs Recovered 2 | . . 2 Drone Launches . | . . . Drone Recoveries . | . . . Exploration | -11 -10 -10 ------------- Run | Yrd Mat Sub Turns Passed 1312 | 131 109 1072 Spaces Moved 692 | 67 34 591 Core 5 | 5 . . Treads 374 | 62 34 278 Legs . | . . . Wheels 313 | . . 313 Hover . | . . . Flight . | . . . Fastest Speed 50 | 50 160 110 Average Speed 139 | 158 160 136 Slowest Speed 200 | 200 160 160 Overloaded Moves . | . . . Propulsion Burnouts . | . . . Robots Hopped . | . . . Potential Cave-ins 3 | . . 3 Cave-ins Triggered . | . . . Exploration Rate (%) 21 | 4 7 53 Regions Visited 2 Branch Regions 1 Pre-discovered Areas 1 | . . 1 Known Exits Taken . | . . . Unknown Exits Taken 2 | 1 1 . Scrap Searched . | . . . Spaces Dug 11 | . . 11 Terrain Destroyed 11 | . . 11 Melee . | . . . Projectile 11 | . . 11 AOE . | . . . Terrain Rammed . | . . . Walls Destroyed . | . . . Machines Disabled . | . . . Actions | -11 -10 -10 --------- Run | Yrd Mat Sub Total 886 | 82 89 715 Wait 82 | 1 56 25 Move 690 | 66 33 591 Hop . | . . . Pick Up 15 | 5 . 10 Fast Attach 11 | 7 . 4 Attach 6 | . . 6 Detach 1 | . . 1 Swap 5 | . . 5 Drop 5 | . . 5 Fire 71 | 3 . 68 Melee . | . . . Ram . | . . . Kick . | . . . Crush . | . . . Escape Stasis . | . . . Rewire . | . . . Trap . | . . . Miscellaneous . | . . . Route ------- -11/Scrapyard -10/Materials -10/Subcaves (discovered 1 exit: Rec) History --------- Turn | Location | Event 27 | -11/Scrapyard | Discovered new exit (range 15) 132 | -11/Scrapyard | Entered Materials 217 | -10/Materials | Discovered new exit (range 6) 241 | -10/Materials | Entered Subcaves 249 | -10/Subcaves | Identified exit to Recycling 273 | -10/Subcaves | Learned location of Zion (-6) 304 | -10/Subcaves | Build established: Mutant 881 | -10/Subcaves | A Subdweller sparked back to life 881 | -10/Subcaves | A Subdweller sparked back to life 913 | -10/Subcaves | Core integrity fell below 50% 944 | -10/Subcaves | Lost 8 parts (1p2n1u4w) 981 | -10/Subcaves | Core integrity fell below 20% 1236 | -10/Subcaves | A swath of the cavern ceiling suddenly collapsed 1284 | -10/Subcaves | Shifting Twisted Machinery released Shrapnel Trap 1292 | -10/Subcaves | Shifting Twisted Machinery released Sub. Optics 1313 | -10/Subcaves | Destroyed by YK-PQS(R) with Subdweller Machine Gun Last Messages --------------- Acquired Sub. Monowheel. Acquired 7 matter. Acquired 3 matter. Subatomizers dissect the Sub. Laser. Acquired Sub. Laser. Subatomizers dissect the Sub. Optics. Acquired 5 matter. Sub. Monowheel shoots sparks and powers down. Sub. Laser destroyed. A swath of the cavern ceiling suddenly collapses. Acquired Sub. Beam Cannon. Shrapnel Trap falls loose from the Twisted Machinery. Critical hit (Destroy). Scrap Shield destroyed. Sub. Optics falls loose from the Twisted Machinery. Sub. Power Source melted. SK-1QJ(R) destroyed. Map ----- +----------------------------------------------------+ | ###### ## ## ##### ###" """"" | | ?????## ########?## % " "" | | ??#???####?#?????## = ! #### " ###### | | ??#???????????????#### ####??# ##????## | | ??????????????#??#??### #####????## #??????### | | ??#?????????#?????##??## ###????????###????????# | | ???????#?????????## #### ##??#??????##????????#?# | | ?????????????????#% ## #?????????????????????#? | | ?????????????????# #??????????????????????? | | ????????##???????## #??????????????????#???? | | ????????????#?#???# ###??????????????????????? | | ??????????????????# #???????????????????#?#??? | | ??????????????????# """#???#??#????##????#??????? | | ??????????????????# " " ????#?#???????????????? | | ??????????????????# " " #?????????????????????? | | ??????????????????# "% "##?????????????????????? | | ??????????????????## """""#??????????????????????? | | ???????????????????## ##""#?#??????#?????????????? | | ?????????????????????### "##?????????????????????? | | ???????????????????#####"""####??????????????????? | | ??????????????????## """"##???????????????### | | ??????????????????# "" &""#???###????????## | | ??????????????????#### "" "#???? ##??????# | | ?????????????????????## """ ####?? ##?????# | | ??????????????????????## "" ## ##?# ##????# | | ???????????????????????##@ # ### ###??# | | ???????????????????????# =R ##### | | ???????????????????????#" !%R ## | | ???????????????????????#"" # #### ### | | ??????????????????????#"""#####??## ## #### | | ??????????????????????##""!???????# ## ##?# | | ??????????????????????# "???????#" ## ##### | | ??????????????????????# ???????# ### | | ??????????????????????# ??????? #?# | | ??????????????????????# ??????? #?## ### | | ??????????????????????#? ???????? #??######?? | | ???????????????????????? ????????### ##?????????? | | ????????????????????????????????????###??????????? | | ?????????????????????????????????????????????????? | | ?????????????????????????????????????????????????? | | ?????????????????????????????????????????????????? | | ?????????????????????????????????????????????????? | | ?????????????????????????????????????????????????? | | ?????????????????????????????????????????????????? | | ?????????????????????????????????????????????????? | | ?????????????????????????????????????????????????? | | ?????????????????????????????????????????????????? | | ?????????????????????????????????????????????????? | | ?????????????????????????????????????????????????? | | ?????????????????????????????????????????????????? | +----------------------------------------------------+ Best States ------------- Heat Dissipation 25 Energy Generation 15 Energy Capacity 250 Matter Stores 300 Matter Capacity 300 Sight Range 16 Terrain Scan Range 16 Terrain Scan Density 10 Armor Coverage 800 Evasion (%) 40 Recoil Reduction 2 Item Schematics ----------------- None Robot Schematics ------------------ None Fabricated ------------ Nothing Repaired ---------- Nothing Alien Tech Used ----------------- None Achievements -------------- None Challenges ------------ None Game ------ Seed PowerLayeredExoskeleton Manual? 0 Play Time 00:10:50 Cumulative 87.5 hours Start 2025.05.15 @ 00:49:58 End 2025.05.15 @ 00:57:53 Sessions 1 Manual Loads 0 Difficulty Rogue Special Mode None Game No. 85 Rogue 85 Adventurer 0 Explorer 0 Win Type - Total 1 Types 1/0/0/0/0/0/0/0/0/0 Lore% 47 Gallery% 50 Achievement% 45 Wizard Run 0 Options --------- Layout 1 ASCII 0 Keyboard 1 Movement Numpad Keybinds 0 Fullscreen 1 Font 32/SmallcapsGlow Map View 50x35 Zoom Use 0% Tactical HUD 0 Map Filters NONE Filters NONE Steam 1 RUN: 0c6b6a58-4add-4509-9da2-7195a137b13e